[Event "Early-Titled-Tuesday-Blitz-May-28-2024"]
[Site "Chess.com"]
[Date "2024.05.28"]
[Round "3"]
[White "Sl4werThanYou"]
[Black "Chopper1905"]
[Result "0-1"]
[WhiteElo "2742"]
[BlackElo "2965"]
[TimeControl "180+1"]
[EndTime "8:31:22 PDT"]
[Termination "Chopper1905 won by checkmate"]

1. e4 {[%clk 0:02:59.1]} 1... c5 {[%clk 0:02:55.2]} 2. Nf3 {[%clk 0:02:58.4]}
2... d6 {[%clk 0:02:53.6]} 3. Bb5+ {[%clk 0:02:55.3]} 3... Nd7 {[%clk
0:02:53.4]} 4. c3 {[%clk 0:02:41.4]} 4... Nf6 {[%clk 0:02:52.1]} 5. Qe2 {[%clk
0:02:41.6]} 5... a6 {[%clk 0:02:51.8]} 6. Ba4 {[%clk 0:02:42]} 6... b5 {[%clk
0:02:52]} 7. Bc2 {[%clk 0:02:42.7]} 7... Bb7 {[%clk 0:02:50.8]} 8. O-O {[%clk
0:02:43.3]} 8... e6 {[%clk 0:02:50.6]} 9. d4 {[%clk 0:02:43.6]} 9... Be7 {[%clk
0:02:50.4]} 10. Rd1 {[%clk 0:02:42.9]} 10... Qc7 {[%clk 0:02:49.6]} 11. a4
{[%clk 0:02:41.5]} 11... O-O {[%clk 0:02:47.3]} 12. Bf4 {[%clk 0:02:12.4]} 12...
e5 {[%clk 0:02:24.4]} 13. dxe5 {[%clk 0:02:11.5]} 13... dxe5 {[%clk 0:02:25.3]}
14. Bg5 {[%clk 0:02:11.9]} 14... Bc6 {[%clk 0:02:16.5]} 15. axb5 {[%clk
0:02:10.9]} 15... axb5 {[%clk 0:02:17]} 16. Nbd2 {[%clk 0:02:11.3]} 16... Qb7
{[%clk 0:01:59.9]} 17. Re1 {[%clk 0:01:50.1]} 17... h6 {[%clk 0:01:57.1]} 18.
Bh4 {[%clk 0:01:44.5]} 18... Rfe8 {[%clk 0:01:50.2]} 19. Rxa8 {[%clk 0:01:32.3]}
19... Qxa8 {[%clk 0:01:48]} 20. Nf1 {[%clk 0:01:33.2]} 20... c4 {[%clk
0:01:40.7]} 21. Bxf6 {[%clk 0:01:26.5]} 21... Bxf6 {[%clk 0:01:36.4]} 22. Ng3
{[%clk 0:01:25.9]} 22... g6 {[%clk 0:01:33.3]} 23. h4 {[%clk 0:01:22.3]} 23...
h5 {[%clk 0:01:30.1]} 24. Ng5 {[%clk 0:01:19.9]} 24... Qd8 {[%clk 0:01:15.3]}
25. Qe3 {[%clk 0:01:17.7]} 25... Qe7 {[%clk 0:01:05.9]} 26. Ra1 {[%clk
0:00:59.2]} 26... Nc5 {[%clk 0:01:06]} 27. Ra5 {[%clk 0:00:27.6]} 27... Ra8
{[%clk 0:00:42.2]} 28. Rxa8+ {[%clk 0:00:26.9]} 28... Bxa8 {[%clk 0:00:43.1]}
29. Nf1 {[%clk 0:00:17.4]} 29... Bxg5 {[%clk 0:00:34.8]} 30. hxg5 {[%clk
0:00:18.3]} 30... Ne6 {[%clk 0:00:35.2]} 31. Qb6 {[%clk 0:00:18.3]} 31... Qe8
{[%clk 0:00:25.8]} 32. Qe3 {[%clk 0:00:07.9]} 32... Qd8 {[%clk 0:00:24.8]} 33.
Qa7 {[%clk 0:00:03.9]} 33... Nxg5 {[%clk 0:00:24.2]} 34. f3 {[%clk 0:00:04.2]}
34... Bc6 {[%clk 0:00:19.9]} 35. b3 {[%clk 0:00:04.5]} 35... h4 {[%clk
0:00:05.5]} 36. bxc4 {[%clk 0:00:04.7]} 36... bxc4 {[%clk 0:00:06.4]} 37. Qc5
{[%clk 0:00:05.4]} 37... Qe8 {[%clk 0:00:03.4]} 38. Qxc4 {[%clk 0:00:03.8]}
38... h3 {[%clk 0:00:04]} 39. Qe2 {[%clk 0:00:04.4]} 39... Bb5 {[%clk
0:00:04.3]} 40. c4 {[%clk 0:00:04]} 40... Ba6 {[%clk 0:00:03.5]} 41. Ne3 {[%clk
0:00:04.3]} 41... hxg2 {[%clk 0:00:03.9]} 42. Kxg2 {[%clk 0:00:05.2]} 42... Ne6
{[%clk 0:00:04.4]} 43. Nd5 {[%clk 0:00:05.2]} 43... Qd8 {[%clk 0:00:05.1]} 44.
Qe3 {[%clk 0:00:05.2]} 44... Bxc4 {[%clk 0:00:04.9]} 45. Bb3 {[%clk 0:00:04.1]}
45... Bxd5 {[%clk 0:00:04.2]} 46. exd5 {[%clk 0:00:02.9]} 46... Nf4+ {[%clk
0:00:05.1]} 47. Kf2 {[%clk 0:00:03.1]} 47... Qh4+ {[%clk 0:00:05.6]} 48. Kf1
{[%clk 0:00:03.2]} 48... Qh1+ {[%clk 0:00:05.1]} 49. Kf2 {[%clk 0:00:03.9]}
49... Qh2+ {[%clk 0:00:05.3]} 50. Kf1 {[%clk 0:00:03.4]} 50... Qh3+ {[%clk
0:00:05]} 51. Kf2 {[%clk 0:00:02.9]} 51... Qg2+ {[%clk 0:00:05.2]} 52. Ke1
{[%clk 0:00:03.6]} 52... Qb2 {[%clk 0:00:06]} 53. Kd1 {[%clk 0:00:03.4]} 53...
Kg7 {[%clk 0:00:04.3]} 54. d6 {[%clk 0:00:03.3]} 54... Qa1+ {[%clk 0:00:04.1]}
55. Kc2 {[%clk 0:00:02.9]} 55... Kf6 {[%clk 0:00:03.8]} 56. d7 {[%clk 0:00:03]}
56... Ke7 {[%clk 0:00:04.2]} 57. Qd2 {[%clk 0:00:02.8]} 57... Qd4 {[%clk
0:00:03.7]} 58. Qa5 {[%clk 0:00:01]} 58... Kxd7 {[%clk 0:00:01.9]} 59. Qb5+
{[%clk 0:00:01.6]} 59... Ke7 {[%clk 0:00:02.2]} 60. Qa6 {[%clk 0:00:02.5]} 60...
Qc5+ {[%clk 0:00:02.2]} 61. Kb1 {[%clk 0:00:02.6]} 61... Ne6 {[%clk 0:00:02.6]}
62. Qb7+ {[%clk 0:00:03.1]} 62... Kf6 {[%clk 0:00:03.2]} 63. Qe4 {[%clk
0:00:04]} 63... Qd4 {[%clk 0:00:03.1]} 64. Qe1 {[%clk 0:00:04.4]} 64... Qf4
{[%clk 0:00:03.2]} 65. Bd5 {[%clk 0:00:02.8]} 65... Nd4 {[%clk 0:00:04.1]} 66.
Qa5 {[%clk 0:00:02.5]} 66... Qf5+ {[%clk 0:00:03.8]} 67. Be4 {[%clk 0:00:02.6]}
67... Qd7 {[%clk 0:00:04.5]} 68. Qb6+ {[%clk 0:00:02.9]} 68... Kg7 {[%clk
0:00:04.8]} 69. Qc5 {[%clk 0:00:03.3]} 69... Qe6 {[%clk 0:00:05.1]} 70. Qc7
{[%clk 0:00:01.8]} 70... Qb3+ {[%clk 0:00:04.7]} 71. Kc1 {[%clk 0:00:02.5]}
71... Qe3+ {[%clk 0:00:04.9]} 72. Kd1 {[%clk 0:00:02.6]} 72... Qe2+ {[%clk
0:00:05.2]} 73. Kc1 {[%clk 0:00:02.8]} 73... Qe1+ {[%clk 0:00:05.6]} 74. Kb2
{[%clk 0:00:03.2]} 74... Qb4+ {[%clk 0:00:06.1]} 75. Kc1 {[%clk 0:00:03.9]}
75... Nb3+ {[%clk 0:00:06]} 76. Kc2 {[%clk 0:00:03.1]} 76... Qc5+ {[%clk
0:00:05.9]} 77. Qxc5 {[%clk 0:00:03.1]} 77... Nxc5 {[%clk 0:00:06.8]} 78. Bd5
{[%clk 0:00:03.9]} 78... Nd7 {[%clk 0:00:06.9]} 79. Kd2 {[%clk 0:00:04.3]} 79...
Kf6 {[%clk 0:00:07.2]} 80. Ke3 {[%clk 0:00:04.5]} 80... Nc5 {[%clk 0:00:07.5]}
81. Bc6 {[%clk 0:00:04.8]} 81... Ke6 {[%clk 0:00:07.4]} 82. Bb5 {[%clk
0:00:04.5]} 82... g5 {[%clk 0:00:07.7]} 83. Bc4+ {[%clk 0:00:05.1]} 83... Ke7
{[%clk 0:00:08.1]} 84. Bd5 {[%clk 0:00:05.6]} 84... f5 {[%clk 0:00:08.7]} 85.
Bc4 {[%clk 0:00:06.2]} 85... f4+ {[%clk 0:00:09]} 86. Ke2 {[%clk 0:00:06.1]}
86... Kf6 {[%clk 0:00:09.6]} 87. Bd5 {[%clk 0:00:05.9]} 87... Kf5 {[%clk
0:00:08.9]} 88. Kf2 {[%clk 0:00:05.8]} 88... e4 {[%clk 0:00:08.2]} 89. fxe4+
{[%clk 0:00:06.7]} 89... Nxe4+ {[%clk 0:00:08.8]} 90. Kg2 {[%clk 0:00:07.3]}
90... g4 {[%clk 0:00:09]} 91. Bc4 {[%clk 0:00:05.8]} 91... f3+ {[%clk
0:00:09.5]} 92. Kg1 {[%clk 0:00:05.8]} 92... Kf4 {[%clk 0:00:08.7]} 93. Bf1
{[%clk 0:00:05.6]} 93... g3 {[%clk 0:00:08.6]} 94. Kh1 {[%clk 0:00:05.7]} 94...
Nd2 {[%clk 0:00:07.5]} 95. Bh3 {[%clk 0:00:05.8]} 95... f2 {[%clk 0:00:06.7]}
96. Bg2 {[%clk 0:00:03.2]} 96... f1=Q+ {[%clk 0:00:05.9]} 97. Bxf1 {[%clk
0:00:04]} 97... Nxf1 {[%clk 0:00:06.7]} 98. Kg2 {[%clk 0:00:04.9]} 98... Ne3+
{[%clk 0:00:07.2]} 99. Kh1 {[%clk 0:00:05.3]} 99... Nf5 {[%clk 0:00:07.5]} 100.
Kg1 {[%clk 0:00:06.2]} 100... Kf3 {[%clk 0:00:07.8]} 101. Kf1 {[%clk 0:00:06.8]}
101... g2+ {[%clk 0:00:07.1]} 102. Kg1 {[%clk 0:00:07.7]} 102... Nd6 {[%clk
0:00:07.6]} 103. Kh2 {[%clk 0:00:08.5]} 103... Kf2 {[%clk 0:00:08.5]} 104. Kh3
{[%clk 0:00:08.8]} 104... g1=Q {[%clk 0:00:09.4]} 105. Kh4 {[%clk 0:00:09.7]}
105... Qg6 {[%clk 0:00:07.9]} 106. Kh3 {[%clk 0:00:10.3]} 106... Qg3# {[%clk
0:00:08.8]} 0-1

[Event "Early-Titled-Tuesday-Blitz-May-28-2024"]
[Site "Chess.com"]
[Date "2024.05.28"]
[Round "4"]
[White "sergeikim"]
[Black "h4parah5"]
[Result "1-0"]
[WhiteElo "2624"]
[BlackElo "2989"]
[TimeControl "180+1"]
[EndTime "8:34:01 PDT"]
[Termination "sergeikim won by resignation"]

1. d4 {[%clk 0:03:00.9]} 1... Nf6 {[%clk 0:02:59.7]} 2. c4 {[%clk 0:03:00.8]}
2... e6 {[%clk 0:03:00.1]} 3. Nc3 {[%clk 0:03:00.8]} 3... Bb4 {[%clk 0:02:58.5]}
4. Qc2 {[%clk 0:03:00.8]} 4... d6 {[%clk 0:02:58.1]} 5. a3 {[%clk 0:03:00.7]}
5... Bxc3+ {[%clk 0:02:57]} 6. Qxc3 {[%clk 0:03:01.6]} 6... Nbd7 {[%clk
0:02:56.3]} 7. Nf3 {[%clk 0:03:01.5]} 7... b6 {[%clk 0:02:55.7]} 8. g3 {[%clk
0:03:01.8]} 8... Bb7 {[%clk 0:02:55.6]} 9. Bg2 {[%clk 0:03:02]} 9... O-O {[%clk
0:02:54.5]} 10. O-O {[%clk 0:03:02]} 10... a5 {[%clk 0:02:50.1]} 11. b3 {[%clk
0:03:01.8]} 11... Ne4 {[%clk 0:02:48]} 12. Qc2 {[%clk 0:03:01.6]} 12... f5
{[%clk 0:02:47.6]} 13. Ng5 {[%clk 0:03:00.3]} 13... Nxg5 {[%clk 0:02:41.2]} 14.
Bxb7 {[%clk 0:02:59.7]} 14... Rb8 {[%clk 0:02:41.5]} 15. Bg2 {[%clk 0:02:59.2]}
15... Qe7 {[%clk 0:02:35.9]} 16. Rd1 {[%clk 0:02:51.1]} 16... Rbe8 {[%clk
0:02:33.4]} 17. b4 {[%clk 0:02:46.8]} 17... e5 {[%clk 0:02:31.1]} 18. dxe5
{[%clk 0:02:43.9]} 18... dxe5 {[%clk 0:02:30.9]} 19. Bxg5 {[%clk 0:02:41]} 1-0

[Event "Early-Titled-Tuesday-Blitz-May-28-2024"]
[Site "Chess.com"]
[Date "2024.05.28"]
[Round "4"]
[White "HanSchut"]
[Black "ailime26"]
[Result "1-0"]
[WhiteElo "2351"]
[BlackElo "2065"]
[TimeControl "180+1"]
[EndTime "8:34:14 PDT"]
[Termination "HanSchut won by resignation"]

1. e4 {[%clk 0:02:59.4]} 1... c5 {[%clk 0:02:59.1]} 2. Nf3 {[%clk 0:02:59.1]}
2... d6 {[%clk 0:02:59.2]} 3. d4 {[%clk 0:02:59.3]} 3... cxd4 {[%clk 0:02:59.5]}
4. Nxd4 {[%clk 0:03:00.2]} 4... Nf6 {[%clk 0:03:00]} 5. f3 {[%clk 0:03:00.9]}
5... g6 {[%clk 0:02:57.9]} 6. c4 {[%clk 0:03:00.7]} 6... Bg7 {[%clk 0:02:53.5]}
7. Be3 {[%clk 0:03:00.9]} 7... O-O {[%clk 0:02:53]} 8. Qd2 {[%clk 0:03:01.6]}
8... Nc6 {[%clk 0:02:47.6]} 9. Nc3 {[%clk 0:03:02.1]} 9... a6 {[%clk 0:02:37.1]}
10. Rc1 {[%clk 0:03:01.5]} 10... Qa5 {[%clk 0:02:35.5]} 11. Be2 {[%clk
0:02:59.8]} 11... Bd7 {[%clk 0:02:29.3]} 12. O-O {[%clk 0:02:59.9]} 12... Rac8
{[%clk 0:02:27.7]} 13. Rfd1 {[%clk 0:02:59.1]} 13... Nxd4 {[%clk 0:02:23.9]} 14.
Bxd4 {[%clk 0:02:58.2]} 14... b5 {[%clk 0:02:21.7]} 15. Nd5 {[%clk 0:02:46.5]}
15... Nxd5 {[%clk 0:02:17.7]} 16. Qxa5 {[%clk 0:02:45.5]} 1-0

[Event "Early-Titled-Tuesday-Blitz-May-28-2024"]
[Site "Chess.com"]
[Date "2024.05.28"]
[Round "4"]
[White "patzer-reloaded"]
[Black "Ati1517"]
[Result "1-0"]
[WhiteElo "2474"]
[BlackElo "2272"]
[TimeControl "180+1"]
[EndTime "8:34:46 PDT"]
[Termination "patzer-reloaded won by resignation"]

1. d3 {[%clk 0:03:00.9]} 1... Nf6 {[%clk 0:02:58.4]} 2. Nf3 {[%clk 0:03:01.8]}
2... g6 {[%clk 0:02:55.3]} 3. g3 {[%clk 0:03:02.7]} 3... Bg7 {[%clk 0:02:55.8]}
4. Bg2 {[%clk 0:03:02.6]} 4... O-O {[%clk 0:02:56.7]} 5. O-O {[%clk 0:03:02.9]}
5... d6 {[%clk 0:02:57.6]} 6. c4 {[%clk 0:03:03.1]} 6... Nbd7 {[%clk 0:02:58.2]}
7. Nc3 {[%clk 0:03:03.6]} 7... Rb8 {[%clk 0:02:58.1]} 8. Rb1 {[%clk 0:03:03.1]}
8... b6 {[%clk 0:02:57.6]} 9. Nd4 {[%clk 0:03:00.2]} 9... Bb7 {[%clk 0:02:54.1]}
10. Nc6 {[%clk 0:02:58.9]} 10... Bxc6 {[%clk 0:02:53.2]} 11. Bxc6 {[%clk
0:02:59.8]} 11... e5 {[%clk 0:02:52.5]} 12. b4 {[%clk 0:02:56]} 12... a5 {[%clk
0:02:47.6]} 13. a3 {[%clk 0:02:52.7]} 13... Qe7 {[%clk 0:02:41.3]} 14. Qa4
{[%clk 0:02:50.4]} 14... axb4 {[%clk 0:02:37]} 15. axb4 {[%clk 0:02:51.3]} 15...
Rfd8 {[%clk 0:02:36.8]} 16. Bg5 {[%clk 0:02:35.8]} 16... h6 {[%clk 0:02:34.6]}
17. Nd5 {[%clk 0:02:34.2]} 17... Qf8 {[%clk 0:02:31.9]} 18. Bxf6 {[%clk
0:02:22.6]} 18... Nxf6 {[%clk 0:02:31.2]} 19. Nxc7 {[%clk 0:02:21.7]} 19... Ng4
{[%clk 0:02:29.1]} 20. Bf3 {[%clk 0:02:12.7]} 20... f5 {[%clk 0:02:27]} 21. Ne6
{[%clk 0:02:05.8]} 1-0

[Event "Early-Titled-Tuesday-Blitz-May-28-2024"]
[Site "Chess.com"]
[Date "2024.05.28"]
[Round "4"]
[White "maximnovik"]
[Black "kekic76"]
[Result "1-0"]
[WhiteElo "2531"]
[BlackElo "2344"]
[TimeControl "180+1"]
[EndTime "8:35:21 PDT"]
[Termination "maximnovik won by resignation"]

1. e4 {[%clk 0:03:00.4]} 1... c6 {[%clk 0:02:57.1]} 2. d4 {[%clk 0:02:59.1]}
2... d5 {[%clk 0:02:33.7]} 3. e5 {[%clk 0:02:58.7]} 3... Bf5 {[%clk 0:02:31.5]}
4. h4 {[%clk 0:02:58.2]} 4... h5 {[%clk 0:02:30.4]} 5. Bd3 {[%clk 0:02:58.1]}
5... Bxd3 {[%clk 0:02:30.1]} 6. Qxd3 {[%clk 0:02:58.7]} 6... e6 {[%clk
0:02:30.2]} 7. Bg5 {[%clk 0:02:57.8]} 7... Be7 {[%clk 0:02:28.1]} 8. Nf3 {[%clk
0:02:53.7]} 8... g6 {[%clk 0:02:27.5]} 9. Nbd2 {[%clk 0:02:53.4]} 9... Nd7
{[%clk 0:02:26]} 10. O-O {[%clk 0:02:53.3]} 10... Bxg5 {[%clk 0:02:19.5]} 11.
Nxg5 {[%clk 0:02:53.2]} 11... Nh6 {[%clk 0:02:18.7]} 12. g3 {[%clk 0:02:39.3]}
12... Nf5 {[%clk 0:02:18.2]} 13. Rfd1 {[%clk 0:02:35.9]} 13... c5 {[%clk
0:02:17.7]} 14. c3 {[%clk 0:02:34]} 14... cxd4 {[%clk 0:02:16.8]} 15. cxd4
{[%clk 0:02:34.2]} 15... Rc8 {[%clk 0:02:16.2]} 16. Nf1 {[%clk 0:02:34.3]} 16...
Kf8 {[%clk 0:02:05.8]} 17. Ne3 {[%clk 0:02:34.1]} 17... Nxe3 {[%clk 0:02:05.7]}
18. fxe3 {[%clk 0:02:31.4]} 18... Kg7 {[%clk 0:02:05.9]} 19. Rf1 {[%clk
0:02:28.6]} 19... Rf8 {[%clk 0:02:05.7]} 20. Rxf7+ {[%clk 0:02:20.9]} 20... Rxf7
{[%clk 0:01:56.2]} 21. Nxe6+ {[%clk 0:02:13.8]} 21... Kh7 {[%clk 0:01:55.8]} 22.
Nxd8 {[%clk 0:02:13.1]} 22... Rxd8 {[%clk 0:01:54]} 23. e6 {[%clk 0:02:12.8]}
1-0

[Event "Early-Titled-Tuesday-Blitz-May-28-2024"]
[Site "Chess.com"]
[Date "2024.05.28"]
[Round "4"]
[White "KatakuriDono"]
[Black "Gryffindorac8"]
[Result "0-1"]
[WhiteElo "2272"]
[BlackElo "2470"]
[TimeControl "180+1"]
[EndTime "8:35:32 PDT"]
[Termination "Gryffindorac8 won by resignation"]

1. d4 {[%clk 0:03:00.9]} 1... Nf6 {[%clk 0:02:58.5]} 2. Nf3 {[%clk 0:03:00.8]}
2... e6 {[%clk 0:02:57.6]} 3. g3 {[%clk 0:03:00.2]} 3... d5 {[%clk 0:02:51.9]}
4. Bg2 {[%clk 0:02:59.9]} 4... c5 {[%clk 0:02:52.2]} 5. O-O {[%clk 0:02:57.7]}
5... Nc6 {[%clk 0:02:52]} 6. c4 {[%clk 0:02:56.7]} 6... Be7 {[%clk 0:02:51.6]}
7. Nc3 {[%clk 0:02:55.6]} 7... O-O {[%clk 0:02:49.9]} 8. cxd5 {[%clk 0:02:55.1]}
8... exd5 {[%clk 0:02:50.4]} 9. dxc5 {[%clk 0:02:53.4]} 9... Bxc5 {[%clk
0:02:50.5]} 10. Bg5 {[%clk 0:02:52.4]} 10... d4 {[%clk 0:02:50.5]} 11. Bxf6
{[%clk 0:02:48.6]} 11... Qxf6 {[%clk 0:02:51.4]} 12. Ne4 {[%clk 0:02:48.9]}
12... Qe7 {[%clk 0:02:51.6]} 13. Nxc5 {[%clk 0:02:49.8]} 13... Qxc5 {[%clk
0:02:51.6]} 14. Rc1 {[%clk 0:02:50.5]} 14... Qb6 {[%clk 0:02:51.9]} 15. Qd2
{[%clk 0:02:41]} 15... Bg4 {[%clk 0:02:47.7]} 16. h3 {[%clk 0:02:33.5]} 16...
Bh5 {[%clk 0:02:44]} 17. Rfd1 {[%clk 0:02:29.4]} 17... Rad8 {[%clk 0:02:42.2]}
18. b3 {[%clk 0:02:24.9]} 18... Rfe8 {[%clk 0:02:38.4]} 19. Qg5 {[%clk
0:02:19.6]} 19... Bg6 {[%clk 0:02:32.9]} 20. Rd2 {[%clk 0:02:19.6]} 20... h6
{[%clk 0:02:31.7]} 21. Qf4 {[%clk 0:02:13.7]} 21... Re4 {[%clk 0:02:22.1]} 22.
Ne5 {[%clk 0:01:53.8]} 22... Rxf4 {[%clk 0:02:15.6]} 23. Nxc6 {[%clk 0:01:46.1]}
23... bxc6 {[%clk 0:02:14.5]} 24. Rxc6 {[%clk 0:01:42.8]} 24... Qb4 {[%clk
0:02:11]} 0-1

[Event "Early-Titled-Tuesday-Blitz-May-28-2024"]
[Site "Chess.com"]
[Date "2024.05.28"]
[Round "4"]
[White "talaicito"]
[Black "amanjazu"]
[Result "0-1"]
[WhiteElo "2256"]
[BlackElo "2556"]
[TimeControl "180+1"]
[EndTime "8:35:48 PDT"]
[Termination "amanjazu won by resignation"]

1. d4 {[%clk 0:03:00.9]} 1... Nf6 {[%clk 0:02:59.9]} 2. Nc3 {[%clk 0:03:00.2]}
2... g6 {[%clk 0:03:00.3]} 3. Bf4 {[%clk 0:03:00.1]} 3... d6 {[%clk 0:03:00.9]}
4. e4 {[%clk 0:03:00.6]} 4... Bg7 {[%clk 0:03:01.3]} 5. Qd2 {[%clk 0:03:01.2]}
5... O-O {[%clk 0:03:01.7]} 6. O-O-O {[%clk 0:03:01.7]} 6... c5 {[%clk
0:03:02.1]} 7. dxc5 {[%clk 0:03:01.1]} 7... Nc6 {[%clk 0:02:49.7]} 8. cxd6
{[%clk 0:02:58.5]} 8... exd6 {[%clk 0:02:48.7]} 9. Bxd6 {[%clk 0:02:57.6]} 9...
Re8 {[%clk 0:02:49.1]} 10. f3 {[%clk 0:02:54.5]} 10... Be6 {[%clk 0:02:46.7]}
11. Kb1 {[%clk 0:02:40.1]} 11... Qa5 {[%clk 0:02:45.8]} 12. e5 {[%clk
0:02:27.9]} 12... Nxe5 {[%clk 0:02:16.2]} 13. b4 {[%clk 0:01:45.9]} 13... Qa3
{[%clk 0:01:46.8]} 14. Nb5 {[%clk 0:01:33.9]} 14... Qxa2+ {[%clk 0:01:45.8]} 0-1

[Event "Early-Titled-Tuesday-Blitz-May-28-2024"]
[Site "Chess.com"]
[Date "2024.05.28"]
[Round "4"]
[White "Logman74"]
[Black "Statham_01"]
[Result "0-1"]
[WhiteElo "2528"]
[BlackElo "2729"]
[TimeControl "180+1"]
[EndTime "8:36:00 PDT"]
[Termination "Statham_01 won by resignation"]

1. e4 {[%clk 0:03:00.9]} 1... e5 {[%clk 0:02:59.3]} 2. Nf3 {[%clk 0:03:00]} 2...
Nf6 {[%clk 0:02:59.1]} 3. Nxe5 {[%clk 0:02:59.4]} 3... d5 {[%clk 0:02:58.6]} 4.
Nf3 {[%clk 0:02:59.8]} 4... dxe4 {[%clk 0:02:58.1]} 5. Ne5 {[%clk 0:02:47.6]}
5... Bc5 {[%clk 0:02:57]} 6. c3 {[%clk 0:02:43.4]} 6... O-O {[%clk 0:02:48.8]}
7. Bc4 {[%clk 0:02:18.2]} 7... Qe7 {[%clk 0:02:47]} 8. Nxf7 {[%clk 0:01:33.1]}
8... Bxf2+ {[%clk 0:02:36.2]} 9. Kxf2 {[%clk 0:01:29.6]} 9... Qc5+ {[%clk
0:02:33.6]} 10. d4 {[%clk 0:00:59.2]} 10... exd3+ {[%clk 0:02:31.7]} 11. Be3
{[%clk 0:00:59.6]} 11... Ne4+ {[%clk 0:02:21.9]} 12. Kf3 {[%clk 0:00:48.4]}
12... Qxc4 {[%clk 0:02:21.1]} 0-1

[Event "Early-Titled-Tuesday-Blitz-May-28-2024"]
[Site "Chess.com"]
[Date "2024.05.28"]
[Round "4"]
[White "WindWhistler11"]
[Black "stollenmonster"]
[Result "1-0"]
[WhiteElo "2551"]
[BlackElo "2869"]
[TimeControl "180+1"]
[EndTime "8:36:03 PDT"]
[Termination "WindWhistler11 won by resignation"]

1. Nf3 {[%clk 0:02:55.7]} 1... Nf6 {[%clk 0:02:59.4]} 2. g3 {[%clk 0:02:56.6]}
2... e6 {[%clk 0:03:00.1]} 3. Bg2 {[%clk 0:02:57.2]} 3... d5 {[%clk 0:03:01]} 4.
c4 {[%clk 0:02:57.8]} 4... Be7 {[%clk 0:03:01.7]} 5. O-O {[%clk 0:02:58.3]} 5...
O-O {[%clk 0:03:02]} 6. b3 {[%clk 0:02:58.7]} 6... b6 {[%clk 0:03:02]} 7. e3
{[%clk 0:02:59.2]} 7... Bb7 {[%clk 0:03:02.5]} 8. Bb2 {[%clk 0:02:59.6]} 8... c5
{[%clk 0:03:02.6]} 9. d3 {[%clk 0:02:59.1]} 9... Nbd7 {[%clk 0:03:03.1]} 10.
Nbd2 {[%clk 0:02:58.9]} 10... Rc8 {[%clk 0:03:03.5]} 11. Qc2 {[%clk 0:02:59.3]}
11... Qc7 {[%clk 0:03:03.8]} 12. a3 {[%clk 0:02:59.6]} 12... Rfd8 {[%clk
0:03:04.3]} 13. Rad1 {[%clk 0:03:00]} 13... Qb8 {[%clk 0:03:04.4]} 14. Rfe1
{[%clk 0:03:00.4]} 14... a6 {[%clk 0:02:57.4]} 15. cxd5 {[%clk 0:02:59.7]} 15...
exd5 {[%clk 0:02:56.4]} 16. Nh4 {[%clk 0:02:59.9]} 16... Bf8 {[%clk 0:02:49.1]}
17. Bh3 {[%clk 0:02:56.3]} 17... Rc6 {[%clk 0:02:41.8]} 18. e4 {[%clk
0:02:53.3]} 18... dxe4 {[%clk 0:02:35.4]} 19. dxe4 {[%clk 0:02:53.3]} 19... Re8
{[%clk 0:02:32.3]} 20. f4 {[%clk 0:02:51.9]} 20... Bc8 {[%clk 0:02:20.7]} 21. e5
{[%clk 0:02:50.4]} 21... Nd5 {[%clk 0:02:08.4]} 22. Bg2 {[%clk 0:02:47.6]} 22...
Ne7 {[%clk 0:02:09]} 23. Ne4 {[%clk 0:02:42.3]} 23... Ng6 {[%clk 0:01:54.5]} 24.
Nf3 {[%clk 0:02:39]} 24... Rc7 {[%clk 0:01:46.2]} 25. h4 {[%clk 0:02:37.4]}
25... Rd8 {[%clk 0:01:36.5]} 26. h5 {[%clk 0:02:36]} 26... Ne7 {[%clk
0:01:36.6]} 27. Nfg5 {[%clk 0:02:29.5]} 27... h6 {[%clk 0:01:32.7]} 28. Rxd7
{[%clk 0:02:24.9]} 1-0

[Event "Early-Titled-Tuesday-Blitz-May-28-2024"]
[Site "Chess.com"]
[Date "2024.05.28"]
[Round "4"]
[White "AsselLesbekova"]
[Black "ilya2700"]
[Result "0-1"]
[WhiteElo "2432"]
[BlackElo "2206"]
[TimeControl "180+1"]
[EndTime "8:36:12 PDT"]
[Termination "ilya2700 won by resignation"]

1. e4 {[%clk 0:03:00.9]} 1... c5 {[%clk 0:02:59.9]} 2. Nf3 {[%clk 0:03:00.1]}
2... e6 {[%clk 0:03:00.6]} 3. d4 {[%clk 0:02:59.2]} 3... cxd4 {[%clk 0:03:01.5]}
4. Nxd4 {[%clk 0:02:59.7]} 4... Nf6 {[%clk 0:03:02.4]} 5. Bd3 {[%clk 0:02:58.7]}
5... Nc6 {[%clk 0:03:02.5]} 6. Nxc6 {[%clk 0:02:56.5]} 6... bxc6 {[%clk
0:03:03.4]} 7. e5 {[%clk 0:02:55.2]} 7... Qa5+ {[%clk 0:03:03.1]} 8. Nc3 {[%clk
0:02:55.2]} 8... Qxe5+ {[%clk 0:03:02.5]} 9. Be3 {[%clk 0:02:56]} 9... d5 {[%clk
0:03:02]} 10. Ne2 {[%clk 0:02:51.3]} 10... Qxb2 {[%clk 0:02:58.9]} 11. O-O
{[%clk 0:02:46.5]} 11... Qb8 {[%clk 0:02:55.5]} 12. Rb1 {[%clk 0:02:42.7]} 12...
Qc7 {[%clk 0:02:54.3]} 13. c4 {[%clk 0:02:41.2]} 13... Bd6 {[%clk 0:02:45]} 14.
g3 {[%clk 0:02:40.6]} 14... h5 {[%clk 0:02:41.4]} 15. h4 {[%clk 0:02:37.8]}
15... Ng4 {[%clk 0:02:39.6]} 16. Bf4 {[%clk 0:02:34.2]} 16... e5 {[%clk
0:02:38.6]} 17. Bg5 {[%clk 0:02:33.1]} 17... e4 {[%clk 0:02:37.9]} 18. Bc2
{[%clk 0:02:32.5]} 18... f6 {[%clk 0:02:36.7]} 19. Bf4 {[%clk 0:02:31.8]} 19...
Be6 {[%clk 0:02:27.3]} 20. Nd4 {[%clk 0:02:26.6]} 20... Bd7 {[%clk 0:02:11.4]}
21. Bxd6 {[%clk 0:02:25.4]} 21... Qxd6 {[%clk 0:02:10.7]} 22. cxd5 {[%clk
0:02:26.3]} 22... cxd5 {[%clk 0:02:09.8]} 23. f3 {[%clk 0:02:25.5]} 23... Ne3
{[%clk 0:02:07.9]} 24. Qe1 {[%clk 0:02:22.8]} 24... Nxf1 {[%clk 0:02:06.9]} 25.
Kxf1 {[%clk 0:02:23.2]} 25... O-O {[%clk 0:02:02.9]} 26. fxe4 {[%clk 0:02:23.1]}
26... Rae8 {[%clk 0:02:03.1]} 27. Bb3 {[%clk 0:02:16.6]} 27... Kh8 {[%clk
0:01:44.9]} 28. Bxd5 {[%clk 0:02:14.9]} 28... f5 {[%clk 0:01:38.2]} 0-1